{"text_format":"1","workbook":"xlsx","n_sheets":1,"sheets":["SVBA_Gabarito"],"not_rendered":{"charts":0,"images":2,"macros":1,"external_links":0,"defined_names":0,"comments":0,"pivot_tables":0},"unopened":[],"bounds":{"document_bytes":16777216,"sheet_cells":100000,"rows_first":2000,"rows_last":500,"rows_between":2000,"halvings":0,"cell_chars":16384,"cell_head_chars":4096},"cells_cut":0,"cells_raw":0,"read":"whole","date_system":"1900"}

{"sheet":"SVBA_Gabarito","index":0,"n_rows":22,"n_cols":14,"rows_kept":22,"cut":false,"hidden":false,"merged":[[6,8,14,8],[15,8,17,8],[15,9,15,13],[11,9,11,13],[6,9,8,13],[17,9,17,13],[16,9,16,13],[14,9,14,13]]}
[]
["Produtos","Preço","Reajuste","Preço Aumentado","Desconto","Variação no Preço","Preço Final"]
["Boina",58,null,{"$f":"SUM(B3:C3)","v":58},null,{"$f":"G3-B3","v":0},{"$f":"B3+C3-E3","v":58}]
["Cartola",149,null,{"$f":"SUM(B4:C4)","v":149},null,0,{"$f":"B4+C4-E4","v":149}]
["Clochê",67,null,67,null,0,67]
["Coco",83,null,83,null,0,83]
["Country",53,null,53,null,0,53,null,"Instrução:","Uma loja de chapéus pretende fazer uma promoção para o black friday. Mas antes de baixar seus preços, o lojista resolve reajustá-los para cima a fim de não reduzir muito a sua margem, seguindo a regra abaixo:"]
["Especial",43,null,43,null,0,43]
["Fedora",112,null,112,null,0,112]
["Fedora Feminino",149,null,149,null,0,149,null,null,"Reajuste","25 a 50","51 a 100","101 a 150"]
["Fedora Social",128,null,128,null,0,128,null,null,"Aumento",0.15,0.25,0.35]
["Floppy",90,null,90,null,0,90,null,null,"O desconto é dado após o aumento do preço"]
["Gorro",62,null,62,null,0,62,null,null,"Desconto","25 a 75","76 a 125","126 a 150","151 mais"]
["Infantil",27,null,27,null,0,27,null,null,"Redução",0.1,0.17499999999999999,0.25,0.3]
["Palha",63,null,63,null,0,63,null,null,"Sublinhe de verde os preços finais que reduziram"]
["Palheta",136,null,136,null,0,136,null,"Lembrete:","ALT + F11 - Acessa o VBE"]
["Panamá",145,null,145,null,0,145,null,null,"Verifique o Módulo_Gabarito"]
["Panamá Similar",66,null,66,null,0,66,null,null,"Ao terminar pressione F5 para Executar a Macro"]
["Pesca ",48,null,48,null,0,48]
["Pork Pie",125,null,125,null,0,125]
["Praia ",59,null,59,null,0,59]
["Viseira",30,null,30,null,0,30]